Workbook

Sheet SLP
B2: Netzentgeltrechner SLP 2026
B6: Bitte befüllen Sie die grünen Eingabefelder, um ihr prognostiziertes Netzentgelt zu ermitteln.
B8: Jahresarbeit | F8: 4000 | I8: 1 Personenhaushalt entspricht ca. 1500 kWh
I9: 2 Personenhaushalt entspricht ca. 2500 kWh
B10: Grundpreis €/a netto | F10: =Preisblätter!C16 -> 77 | I10: 3 Personenhaushalt entspricht ca. 3500 kWh
B11: Arbeitspreis ct/kWh netto | F11: =Preisblätter!C17 -> 10.724392 | I11: 4 Personenhaushalt entspricht ca. 4250 kWh
I12: 5 Personenhaushalt entspricht ca. 5000 kWh
B13: Jahresentgelt exklusive Messung netto | F13: =F11/100*F8+F10 -> 505.97568
B16: Messstellenbetrieb | C16: €/Jahr netto | D16: "X" eintragen, wenn zutreffend
B18: Eintarifzähler | C18: =Preisblätter!I15 -> 8.58 | D18: x | F18: =IF(D18="x",C18,0) -> 8.58
B20: Zweitarifzähler (inkl. Tarifschaltung) | C20: =Preisblätter!I16 -> 9.62 | F20: =IF(D20="x",C20,0) -> 0
B22: EDL21 nach § 21b (3a) und (3b) EnWG a.F. (übergangsweise) | C22: =Preisblätter!I17 -> 16.81 | F22: 0
B24: Wandler Niederspannung | C24: =Preisblätter!I18 -> 23.5 | F24: 0
B26: Kundendienstrelais | C26: =Preisblätter!I19 -> 55 | F26: 0
B28: Monatliche MDE-Ablesung | C28: =Preisblätter!I20 -> 696 | F28: 0
F29: =SUM(F18:F28) -> 8.58
B31: Jahresentgelt inklusive Messung netto | F31: =SUM(F18:F26)+F13 -> 514.55568

Sheet RLM
B2: Netzentgeltrechner RLM 2026
B6: Bitte befüllen Sie die grünen Eingabefelder, um ihr prognostiziertes Netzentgelt zu ermitteln.
B8: Spannungsebene | D8: bitte auswählen | F8: Mittelspannung
B10: Arbeit | F10: 500001
B12: Jahresmaximalleistung | F12: 200
B14: Benutzungsstunden | F14: =F10/F12 -> 2500.005
B16: Arbeispreis ct/kWh netto | F16: =IF(AND(F14<=2500,(F8="Niederspannung")),Preisblätter!D10,IF(AND(F14<=2500,(F8="Umspannung NS")),Preisblätter!D9,IF(AND(F14<=2500,(F8="Mittelspannung")),Preisblätter!D8,IF(AND(F14>=2500,(F8="Niederspannung")),Preisblätter!F10,IF(AND(F14>=2500,(F8="Umspannung NS")),Preisblätter!F9,IF(AND(F14>=2500,(F8="Mittelspannung")),Preisblätter!F8,)))))) -> 0.07842216271
B18: Leistungspreis €/kWa netto | F18: =IF(AND(F14<=2500,(F8="Niederspannung")),Preisblätter!C10,IF(AND(F14<=2500,(F8="Umspannung NS")),Preisblätter!C9,IF(AND(F14<=2500,(F8="Mittelspannung")),Preisblätter!C8,IF(AND(F14>=2500,(F8="Niederspannung")),Preisblätter!E10,IF(AND(F14>=2500,(F8="Umspannung NS")),Preisblätter!E9,IF(AND(F14>=2500,(F8="Mittelspannung")),Preisblätter!E8,)))))) -> 238.5915878
B20: Jahresentgelt ohne Messung netto | F20: =F16/100*F10+F18*F14 -> 596872.2741
B23: Messstellenbetrieb | C23: €/Jahr netto | D23: "X" eintragen, wenn zutreffend
F24: =IF(D24="x",C24,0) -> 0
B25: Mittelspannung | C25: =Preisblätter!I5 -> 349.48 | D25: x | F25: 349.48
F26: 0
B27: Umspannung MS/NS | C27: =Preisblätter!I6 -> 294.74 | F27: 0
F28: 0
B29: Niederspannung | C29: =Preisblätter!I7 -> 294.74 | F29: 0
F30: 0
B31: Wandler Mittelspannung | C31: =Preisblätter!I8 -> 95.38 | F31: 0
F32: 0
B33: Wandler Niederspannung | C33: =Preisblätter!I9 -> 23.5 | F33: 0
F34: 0
B35: TK-Einrichtung für Fernauslesung | C35: =Preisblätter!I10 -> 73.89 | F35: 0
F36: =SUM(F23:F33) -> 349.48
B38: Jahresentgelt inklusive Messung netto | F38: =SUM(F24:F35)+F20 -> 597221.7541

Sheet Preisblätter (hidden)
A2: Preise für die Nutzung der Netzinfrastruktur für Kunden mit Leistungsmessung (RLM)
B4: Art der Entnahmestelle | C4: Jahresbenutzungsdauer < 2.500 Vollbenutzungsstunden | E4: Jahresbenutzungsdauer ≥ 2.500 Vollbenutzungsstunden | H4: Messstellenbetrieb | I4: €/Jahr netto | J4: €/Jahr brutto²
H5: Mittelspannung | I5: 349.48 | J5: =I5*119% -> 415.8812
C6: Leistungspreis €/kWa | D6: Arbeitspreis ct/kWh | E6: Leistungspreis €/kWa | F6: Arbeitspreis ct/kWh | H6: Umspannung MS/NS | I6: 294.74 | J6: 350.7406
H7: Niederspannung | I7: 294.74 | J7: =I7*119% -> 350.7406
B8: Mittelspannung | C8: 21.23240844 | D8: 8.772789338 | E8: 238.5915878 | F8: 0.07842216271 | H8: Wandler Mittelspannung | I8: 95.38 | J8: 113.5022
B9: Umspannung NS | C9: 22.16948827 | D9: 9.226335973 | E9: 248.9655487 | F9: 0.1544935571 | H9: Wandler Niederspannung | I9: 23.5 | J9: 27.965
B10: Niederspannung | C10: 24.4734373 | D10: 9.14800208 | E10: 185.768407 | F10: 2.696203294 | H10: TK-Einrichtung für Fernauslesung | I10: 73.89 | J10: 87.9291
A12: Preise für die Nutzung der Netzinfrastruktur für Kunden mit Wirkarbeitszählung (SLP)
B14: Kunde im Niederspannungsnetz ohne Lastgangzählung | C14: netto | D14: brutto² | H14: Messstellenbetrieb | I14: €/Jahr netto | J14: €/Jahr brutto²
H15: Eintarifzähler | I15: 8.58 | J15: =I15*119% -> 10.2102
B16: Grundpreis €/a | C16: 77 | D16: 91.63 | H16: Zweitarifzähler (inkl. Tarifschaltung) | I16: 9.62 | J16: =I16*119% -> 11.4478
B17: Arbeitspreis ct/kWh | C17: 10.724392 | D17: 12.76202648 | H17: EDL21 nach § 21b (3a) und (3b) EnWG a.F. (übergangsweise) | I17: 16.81 | J17: 20.0039
H18: Wandler Niederspannung | I18: 23.5 | J18: 27.965
B19: Entnahme durch Elektro-Speicherheizung / Wärmepumpe | C19: netto | D19: brutto² | H19: Kundendienstrelais | I19: 55 | J19: 65.45
H20: Monatliche MDE-Ablesung | I20: 696 | J20: 828.24
B21: Grundpreis €/a | C21: 77 | D21: 91.63
B22: Arbeitspreis ct/kWh | C22: 4.2897568 | D22: 5.104810592
B24: Entnahme durch Elektromobilität | C24: netto | D24: brutto²
B26: Grundpreis €/a | C26: 77 | D26: 91.63
B27: Arbeitspreis ct/kWh | C27: 8.25778184 | D27: 9.82676039

Sheet Tabelle4 (hidden)
B1: 1 | D1: <2500
B2: 2 | D2: >2500
B3: 3
B4: 4
B5: 5
